bitfinex/quotes_BTCUSD_20230115
["timestamp","ask_amount","ask_price","bid_price","bid_amount"]
[1673780544110,0.2165586,20746.0,20745.0,0.37748046]
[1673780544385,0.5165586,20746.0,20745.0,0.37748046]
[1673780544889,0.5165586,20746.0,20745.0,14.37748046]
[1673780545145,0.3,20746.0,20745.0,0.37748046]
[1673780545587,0.3,20746.0,20745.0,14.37748046]
[1673780545852,0.3,20746.0,20745.0,0.37748046]
[1673780546105,0.301,20746.0,20745.0,20.45448046]
[1673780546368,0.3,20746.0,20745.0,20.3775511]
[1673780546625,0.3,20746.0,20745.0,0.4545511]
[1673780546626,0.301,20746.0,20745.0,0.4545511]
[1673780546910,0.9985786,20746.0,20745.0,26.0]
[1673780547168,1.39683152,20746.0,20745.0,0.077]
[1673780547425,1.87885152,20746.0,20745.0,15.077]
[1673780547680,2.0231106,20746.0,20745.0,0.077]
[1673780547957,2.16748291,20746.0,20745.0,15.077]
[1673780548232,2.16748291,20746.0,20745.0,22.077]
[1673780548504,2.16748291,20746.0,20745.0,0.077]
[1673780548761,1.87885152,20746.0,20745.0,15.077]
[1673780549018,2.02305384,20746.0,20745.0,0.077]
[1673780549327,2.02305384,20746.0,20745.0,18.077]
[1673780549612,2.02305384,20746.0,20745.0,0.077]
[1673780549888,1.80649524,20746.0,20745.0,17.077]
[1673780550146,1.40924232,20746.0,20745.0,17.077]
[1673780550417,1.40924232,20746.0,20745.0,21.077]
[1673780550721,0.001,20746.0,20745.0,16.57349976]
[1673780551242,0.001,20746.0,20745.0,21.57349976]
[1673780551494,0.001,20746.0,20745.0,0.57349976]
[1673780551718,0.001,20746.0,20745.0,18.57349976]
[1673780552247,0.001,20746.0,20745.0,0.57349976]
[1673780552501,0.001,20746.0,20745.0,19.57349976]
[1673780552755,0.001,20746.0,20745.0,0.57349976]
[1673780553007,0.001,20746.0,20745.0,17.57349976]
[1673780553551,0.001,20746.0,20745.0,0.57349976]
[1673780554063,0.301,20746.0,20745.0,0.57349976]
[1673780554866,0.301,20746.0,20745.0,18.57349976]
[1673780555095,0.301,20746.0,20745.0,0.57349976]
[1673780555379,0.301,20746.0,20745.0,10.57349976]
[1673780557685,0.001,20746.0,20745.0,10.57349976]
[1673780559237,0.301,20746.0,20745.0,10.57349976]
[1673780559486,0.001,20746.0,20745.0,10.57349976]
[1673780561604,0.00154749,20746.0,20745.0,10.57349976]
[1673780561864,0.301,20746.0,20745.0,10.57349976]
[1673780562690,0.001,20746.0,20745.0,10.57349976]
[1673780563476,0.001,20746.0,20745.0,10.54488616]
[1673780563989,0.001,20746.0,20745.0,10.72878916]
[1673780564247,0.001,20746.0,20745.0,10.54488616]
[1673780564765,0.001,20746.0,20745.0,10.54481594]
[1673780565553,0.001,20746.0,20745.0,10.72871894]
[1673780565812,0.001,20746.0,20745.0,10.54481594]
[1673780566905,0.001,20746.0,20745.0,10.72871894]
[1673780567712,0.001,20746.0,20745.0,10.72878622]
[1673780569010,0.001,20746.0,20745.0,10.54488322]
[1673780569278,0.001,20746.0,20745.0,10.72878622]
[1673780570036,0.001,20746.0,20745.0,10.54488322]
[1673780570300,0.001,20746.0,20745.0,10.72878622]
[1673780570576,0.001,20746.0,20745.0,10.54488322]
[1673780571073,0.001,20746.0,20745.0,10.54481594]
[1673780572184,0.14520232,20746.0,20745.0,10.54488322]
[1673780572430,0.301,20746.0,20745.0,10.54488322]
[1673780572915,0.14520232,20746.0,20745.0,10.54488322]
[1673780573277,0.001,20746.0,20745.0,10.54488322]
[1673780574600,0.14520232,20746.0,20745.0,10.54488322]
[1673780575353,0.44520232,20746.0,20745.0,10.54488322]
[1673780575607,0.14520232,20746.0,20745.0,10.54488322]
[1673780575875,0.44520232,20746.0,20745.0,10.54488322]
[1673780576110,0.14520232,20746.0,20745.0,10.54488322]
[1673780576885,0.80673748,20746.0,20745.0,10.07692978]
[1673780577143,0.58963139,20746.0,20745.0,10.07692978]
[1673780577399,0.80632947,20746.0,20745.0,0.07692978]
[1673780577661,0.80632947,20746.0,20745.0,9.07692978]
[1673780577918,0.80687696,20746.0,20745.0,9.07692978]
[1673780578170,0.80632947,20746.0,20745.0,9.07692978]
[1673780578426,0.58963139,20746.0,20745.0,9.07692978]
[1673780578683,0.80632832,20746.0,20745.0,9.07692978]
[1673780578931,0.51769693,20746.0,20745.0,9.07692978]
[1673780579446,0.80632832,20746.0,20745.0,9.07692978]
[1673780579973,0.80687581,20746.0,20745.0,9.07692978]
[1673780580238,0.80632832,20746.0,20745.0,9.07692978]
[1673780580548,0.36218128,20746.0,20745.0,9.07692978]
[1673780581306,0.14548435,20746.0,20745.0,9.07692978]
[1673780583358,0.44603184,20746.0,20745.0,9.07692978]
[1673780583619,0.36218128,20746.0,20745.0,9.07692978]
[1673780583867,0.14548435,20746.0,20745.0,9.07692978]
[1673780584665,0.14603184,20746.0,20745.0,9.07692978]
[1673780585208,0.66272877,20746.0,20745.0,9.07692978]
[1673780585474,1.98932638,20746.0,20745.0,9.07692978]
[1673780585752,1.70069499,20746.0,20745.0,9.07692978]
[1673780586011,2.18271499,20746.0,20745.0,0.07692978]
[1673780586294,2.18271499,20746.0,20745.0,7.07692978]
[1673780586549,2.47170348,20746.0,20745.0,7.07692978]
[1673780586797,2.47170348,20746.0,20745.0,0.07685034]
[1673780587070,2.18271499,20746.0,20745.0,0.07685034]
[1673780587584,1.82178946,20746.0,20745.0,0.07685034]
[1673780587796,2.66023905,20746.0,20745.0,23.07685034]
[1673780588335,2.29899115,20746.0,20745.0,19.07685034]
[1673780588794,2.29899115,20746.0,20745.0,0.07685034]
[1673780589044,2.73202538,20746.0,20745.0,20.07685034]
[1673780589303,2.73302538,20746.0,20745.0,0.054]
[1673780589582,2.29799115,20746.0,20745.0,15.0]
[1673780589838,2.31444366,20746.0,20745.0,0.001]
[1673780590098,2.29744366,20746.0,20745.0,18.0]
[1673780590336,2.31444366,20746.0,20745.0,18.001]
[1673780590632,2.65858279,20746.0,20744.0,23.37631922]
[1673780591138,0.5055391,20745.0,20744.0,0.37631922]
[1673780591405,2.29727732,20745.0,20740.0,0.14434981]
[1673780591652,2.29727732,20745.0,20743.0,0.41615951]
[1673780591653,0.86163306,20744.0,20743.0,0.41615951]
[1673780591902,1.76958485,20744.0,20743.0,0.41615951]
[1673780592157,1.76958485,20744.0,20743.0,25.41615951]
[1673780592410,1.76958485,20744.0,20743.0,0.41615951]
[1673780592666,1.77158485,20744.0,20743.0,31.48715951]
[1673780593180,1.48275579,20744.0,20743.0,28.48715951]
[1673780593458,1.77158485,20744.0,20743.0,28.48715951]
[1673780594020,1.62709242,20744.0,20743.0,28.071]
[1673780594337,2.61577525,20744.0,20743.0,28.071]
[1673780594600,2.25518361,20744.0,20743.0,17.071]
[1673780594854,2.25518361,20744.0,20743.0,0.071]
[1673780595114,2.57632361,20744.0,20743.0,0.071]
[1673780595402,2.93490856,20744.0,20741.0,0.41075461]
[1673780595665,0.14423667,20742.0,20741.0,0.41075461]
[1673780595930,1.16384467,20742.0,20741.0,0.41075461]
[1673780596194,1.14270467,20742.0,20738.0,0.00717125]
[1673780596452,0.30054749,20741.0,20739.0,0.47451439]
[1673780598250,1.61240378,20742.0,20739.0,0.47458169]
[1673780598510,0.3,20741.0,20739.0,0.47451439]
[1673780598768,1.24583056,20741.0,20739.0,0.47451439]
[1673780599031,1.24583056,20741.0,20738.0,0.07817125]
[1673780599032,0.45791352,20740.0,20738.0,0.07817125]
[1673780599572,0.62114,20739.0,20738.0,0.00717125]
[1673780599851,1.61093621,20739.0,20738.0,0.00717125]
[1673780600113,1.72974267,20739.0,20738.0,0.00717125]
[1673780600372,1.94609767,20739.0,20738.0,0.06717125]
[1673780600645,1.94593318,20739.0,20738.0,0.00717125]
[1673780600906,1.73257818,20739.0,20738.0,0.06717125]
[1673780601182,2.20977987,20739.0,20738.0,0.00717125]
[1673780601461,2.21277987,20739.0,20738.0,0.06717125]
[1673780601720,2.06270769,20739.0,20738.0,0.00717125]
[1673780602005,2.44408765,20739.0,20738.0,0.06417125]
[1673780602229,2.06625518,20739.0,20738.0,0.06417125]
[1673780602520,2.21032736,20739.0,20738.0,0.06417125]
[1673780603304,2.54168854,20739.0,20738.0,0.06417125]
[1673780603575,2.06625518,20739.0,20738.0,0.06417125]
[1673780604302,2.21032736,20739.0,20738.0,0.06417125]
[1673780604806,2.60559168,20739.0,20738.0,0.06417125]
[1673780605047,2.21032736,20739.0,20738.0,0.06417125]
[1673780605321,2.06625518,20739.0,20738.0,0.06417125]
[1673780606335,2.20732736,20739.0,20738.0,0.00717125]
[1673780606583,2.07725518,20739.0,20738.0,0.00817125]
[1673780607090,2.06325518,20739.0,20738.0,0.00717125]
[1673780607340,2.51343978,20739.0,20738.0,0.01217125]
[1673780607587,2.09525518,20739.0,20738.0,0.01217125]
[1673780608359,2.09525518,20739.0,20738.0,0.01205221]
[1673780610141,2.28376252,20739.0,20738.0,0.01205221]
[1673780610418,2.23932736,20739.0,20738.0,0.01205221]
[1673780610940,2.09525518,20739.0,20738.0,0.01205221]
[1673780611196,2.23932736,20739.0,20738.0,0.01205221]
[1673780612284,2.09525518,20739.0,20738.0,0.01205221]
[1673780612764,2.56935735,20739.0,20738.0,0.01205221]
[1673780613031,2.68142953,20739.0,20738.0,0.00705221]
[1673780613288,2.71342953,20739.0,20738.0,0.01205221]
[1673780614318,2.29404238,20739.0,20738.0,0.01205221]
[1673780615382,1.97290238,20739.0,20738.0,0.01205221]
[1673780615630,2.29404238,20739.0,20738.0,0.01205221]
[1673780615893,2.27290238,20739.0,20738.0,0.01205221]
[1673780616122,2.59404238,20739.0,20738.0,0.01205221]
[1673780616956,2.56935735,20739.0,20738.0,0.01205221]
[1673780617744,2.95373219,20739.0,20738.0,0.01205221]
[1673780618268,2.56935735,20739.0,20738.0,0.01205221]
[1673780618527,2.52749187,20739.0,20738.0,0.01205221]
[1673780619549,2.56189328,20739.0,20738.0,0.01205221]
[1673780620859,2.47400443,20739.0,20738.0,0.01205221]
[1673780621383,2.09525518,20739.0,20738.0,0.01205221]
[1673780622400,2.45568236,20739.0,20738.0,0.01205221]
[1673780622924,2.92978453,20739.0,20738.0,0.01205221]
[1673780623272,3.07418569,20739.0,20738.0,0.01205221]
[1673780623460,2.60008352,20739.0,20738.0,0.01205221]
[1673780624772,2.80477639,20739.0,20738.0,0.01205221]
[1673780625535,2.59957379,20739.0,20738.0,0.01205221]
[1673780626307,2.38372852,20739.0,20738.0,0.01205221]
[1673780626611,2.516312,20739.0,20738.0,0.01205221]
[1673780626869,2.99041417,20739.0,20738.0,0.01205221]
[1673780627423,3.2783044,20739.0,20738.0,0.01205221]
[1673780627681,3.27831244,20739.0,20738.0,0.01205221]
[1673780627971,2.91772749,20739.0,20738.0,0.01205221]
[1673780628799,3.27831244,20739.0,20738.0,0.01205221]
[1673780629727,2.99041417,20739.0,20738.0,0.01205221]
[1673780630598,2.99041417,20739.0,20738.0,0.01197209]
[1673780630820,2.62982922,20739.0,20738.0,0.01197209]
[1673780631733,3.43908784,20739.0,20738.0,0.01197209]
[1673780631955,3.07886073,20739.0,20738.0,0.01197209]
[1673780632173,2.62982922,20739.0,20738.0,0.01197209]
[1673780633958,3.06286345,20739.0,20738.0,0.01197209]
[1673780635346,3.5463448,20739.0,20738.0,0.01197209]
[1673780635781,3.06286345,20739.0,20738.0,0.01197209]
[1673780635988,2.62982922,20739.0,20738.0,0.01197209]
[1673780636452,3.06286345,20739.0,20738.0,0.01197209]
[1673780636664,2.62982922,20739.0,20738.0,0.01197209]
[1673780636886,2.62982922,20739.0,20738.0,0.0099066]
[1673780638013,2.63704922,20739.0,20738.0,0.0099066]
[1673780638224,3.06999612,20739.0,20738.0,0.0099066]
[1673780638674,2.82550331,20739.0,20738.0,0.0099066]
[1673780638928,3.12314147,20739.0,20738.0,0.0099066]
[1673780639146,2.63704922,20739.0,20738.0,0.0099066]
[1673780640934,3.12314147,20739.0,20738.0,0.0099066]
[1673780641834,3.31159556,20739.0,20738.0,0.0099066]
[1673780642061,3.12314147,20739.0,20738.0,0.0099066]
[1673780642282,3.31159556,20739.0,20738.0,0.0099066]
[1673780642550,3.12314147,20739.0,20738.0,0.0099066]
[1673780642794,3.31159556,20739.0,20738.0,0.0099066]
[1673780643449,3.31315947,20739.0,20738.0,0.0099066]
[1673780643907,3.36352145,20739.0,20738.0,0.0099066]
[1673780644819,2.87585206,20739.0,20738.0,0.0099066]
[1673780647206,2.87585206,20739.0,20738.0,0.00673248]
[1673780649617,2.86863206,20739.0,20738.0,0.00673248]
[1673780649887,2.87585206,20739.0,20738.0,0.00673248]
[1673780650705,0.482239,20737.0,20732.0,0.00752208]
[1673780650968,0.482239,20737.0,20731.0,0.00771161]
[1673780650969,0.97190452,20734.0,20731.0,0.00771161]
[1673780651250,3.70436193,20733.0,20731.0,0.00771161]
[1673780651509,1.13597356,20732.0,20731.0,0.00771161]
[1673780651795,2.43141756,20732.0,20731.0,0.00771161]
[1673780652574,2.86421397,20732.0,20731.0,0.00771161]
[1673780652836,2.95421397,20732.0,20731.0,0.00771161]
[1673780653403,2.52141756,20732.0,20731.0,0.00771161]
[1673780653679,2.43141756,20732.0,20731.0,0.00771161]
[1673780653953,2.52241756,20732.0,20731.0,0.00771161]
[1673780654208,2.83933377,20732.0,20731.0,0.00771161]
[1673780654505,3.36311424,20732.0,20731.0,0.00771161]
[1673780654764,3.27211424,20732.0,20731.0,0.00771161]
[1673780655010,3.36311424,20732.0,20731.0,0.00771161]
[1673780656044,2.96241803,20732.0,20731.0,0.00771161]
[1673780657042,2.96241803,20732.0,20731.0,0.00631586]
[1673780657299,2.87141803,20732.0,20731.0,0.00631586]
[1673780657560,2.96241803,20732.0,20731.0,0.00631586]
[1673780658627,2.53018505,20732.0,20731.0,0.00631586]
[1673780658880,2.97312125,20732.0,20731.0,0.00631586]
[1673780659162,2.53018505,20732.0,20731.0,0.00631586]
[1673780659415,2.89021036,20732.0,20731.0,0.00631586]
[1673780659714,3.2692428,20732.0,20731.0,0.00631586]
[1673780659969,3.26923954,20732.0,20731.0,0.00631586]
[1673780660228,2.22296505,20732.0,20731.0,0.00631586]
[1673780660485,2.63602,20732.0,20731.0,0.00631586]
[1673780660744,2.84502,20732.0,20731.0,0.00631586]
[1673780660992,3.36825298,20732.0,20731.0,0.00631586]
[1673780661246,3.27725298,20732.0,20731.0,0.00631586]
[1673780661495,3.36825298,20732.0,20731.0,0.00631586]
[1673780662529,2.84502,20732.0,20731.0,0.00631586]
[1673780662793,2.93602,20732.0,20731.0,0.00631586]
[1673780663089,3.36825298,20732.0,20731.0,0.00631586]
[1673780663523,3.36825298,20732.0,20730.0,0.00771161]
[1673780663524,0.1,20731.0,20730.0,0.00771161]
[1673780663784,3.10105743,20731.0,20730.0,0.00771161]
[1673780664072,3.53329041,20731.0,20730.0,6.1e-07]
[1673780664330,3.53329041,20731.0,20729.0,0.00809869]
[1673780664595,0.97904926,20730.0,20729.0,0.00809869]
[1673780664886,0.00311061,20728.0,20725.0,0.00827344]
[1673780665108,0.22298876,20726.0,20725.0,0.00827344]
[1673780665379,1.61677118,20726.0,20725.0,0.00827344]
[1673780665687,1.91677118,20726.0,20725.0,0.00827344]
[1673780666308,1.91677118,20726.0,20725.0,0.0001988]
[1673780666537,2.18250994,20726.0,20725.0,0.0001988]
[1673780666756,2.69307795,20726.0,20725.0,0.0001988]
[1673780667006,2.13146058,20726.0,20725.0,0.0001988]
[1673780667197,2.13136788,20726.0,20725.0,0.0001988]
[1673780667407,2.22236788,20726.0,20725.0,0.0001988]
[1673780667648,2.13136788,20726.0,20725.0,0.0001988]
[1673780667891,2.22236788,20726.0,20725.0,0.0001988]
[1673780668323,2.22291537,20726.0,20725.0,0.0001988]
[1673780668792,2.13191537,20726.0,20725.0,0.0001988]
[1673780669033,2.22291537,20726.0,20725.0,0.0001988]
[1673780669239,1.86437848,20726.0,20725.0,0.0001988]
[1673780669454,2.2756756,20726.0,20725.0,0.0001988]
[1673780669688,2.41952309,20726.0,20725.0,0.0001988]
[1673780670347,2.32852309,20726.0,20725.0,0.0001988]
[1673780670554,1.86437848,20726.0,20725.0,0.0001988]
[1673780670792,2.00822597,20726.0,20725.0,0.0001988]
[1673780670984,1.86437848,20726.0,20725.0,0.0001988]
[1673780671212,2.00822597,20726.0,20725.0,0.0001988]
[1673780672288,1.91722597,20726.0,20725.0,0.0001988]
[1673780672738,2.09850233,20726.0,20725.0,0.0001988]
[1673780672952,2.00822597,20726.0,20725.0,0.0001988]
[1673780674344,1.86437848,20726.0,20725.0,0.0001988]
[1673780674798,1.88980869,20726.0,20723.0,0.00939363]
[1673780675112,0.62090387,20724.0,20723.0,0.19072595]
[1673780675293,2.25560969,20724.0,20722.0,0.00967138]
[1673780675514,1.09834169,20723.0,20722.0,0.00967138]
[1673780675737,2.06345169,20723.0,20722.0,0.49227861]
[1673780677308,2.12445169,20723.0,20722.0,0.49227861]
[1673780677536,2.12445169,20723.0,20722.0,0.00967138]
[1673780679178,2.12499918,20723.0,20722.0,0.00967138]
[1673780680299,0.061,20723.0,20722.0,0.54564469]
[1673780680519,0.061,20723.0,20722.0,0.89474911]
[1673780680736,0.061,20723.0,20722.0,0.99474911]
[1673780681187,0.061,20723.0,20722.0,1.29668928]
[1673780681667,0.061,20723.0,20722.0,0.53909174]
[1673780681670,0.061,20723.0,20722.0,1.52364446]
[1673780681967,1e-08,20723.0,20722.0,2.42993616]
[1673780682223,6e-05,20724.0,20722.0,2.42993616]
[1673780682491,6e-05,20724.0,20722.0,1.72204946]
[1673780682758,6e-05,20724.0,20723.0,0.184163]
[1673780683026,6e-05,20724.0,20723.0,1.249273]
[1673780683302,0.00306,20724.0,20723.0,1.249273]
[1673780683566,6e-05,20724.0,20723.0,1.249273]
[1673780683814,0.00306,20724.0,20723.0,1.212273]
[1673780684607,6e-05,20724.0,20723.0,1.149273]
[1673780684865,0.00306,20724.0,20723.0,1.212273]
[1673780685407,6e-05,20724.0,20723.0,1.149273]
[1673780685616,0.00306,20724.0,20723.0,1.212273]
[1673780685873,0.00306,20724.0,20723.0,1.53408908]
[1673780686171,0.00606,20724.0,20723.0,1.212273]
[1673780686389,0.00306,20724.0,20723.0,1.149273]
[1673780686655,0.00606,20724.0,20723.0,1.212273]
[1673780687176,0.00606,20724.0,20723.0,1.57239824]
[1673780687439,6e-05,20724.0,20723.0,0.54428824]
[1673780687693,6e-05,20724.0,20723.0,0.60728824]
[1673780687694,0.00306,20724.0,20723.0,0.60728824]
[1673780688231,0.00360749,20724.0,20723.0,0.42312524]
[1673780688998,0.30060749,20724.0,20723.0,0.36012524]
[1673780689286,0.78613949,20724.0,20723.0,0.058]
[1673780689540,0.48613949,20724.0,20723.0,0.058]
[1673780690102,0.78613949,20724.0,20723.0,0.058]
[1673780690361,1.6942062,20724.0,20722.0,0.48931395]
[1673780690715,1.6972062,20724.0,20723.0,0.058]
[1673780690988,1.26867149,20724.0,20723.0,0.058]
[1673780691245,1.26567149,20724.0,20722.0,0.00967138]
[1673780691501,0.35968252,20723.0,20722.0,0.06767138]
[1673780691767,0.84223752,20723.0,20722.0,0.06767138]
[1673780692033,0.84223752,20723.0,20722.0,0.00967138]
[1673780692536,0.84223752,20723.0,20722.0,0.19384238]
[1673780692794,0.84223752,20723.0,20722.0,0.00967138]
[1673780693593,0.003,20723.0,20722.0,0.06767138]
[1673780693847,0.003,20723.0,20722.0,0.44468063]
[1673780696913,1.69463737,20723.0,20722.0,0.06767138]
[1673780697224,1.69518486,20723.0,20722.0,0.06767138]
[1673780697430,1.77081036,20723.0,20722.0,0.06767138]
[1673780697682,2.9336108,20723.0,20722.0,0.06767138]
[1673780697945,2.71814754,20723.0,20722.0,0.06767138]
[1673780698707,2.92043579,20723.0,20722.0,0.06767138]
[1673780698964,2.50173012,20723.0,20722.0,0.06767138]
[1673780699213,2.91396781,20723.0,20722.0,0.06767138]
[1673780699468,2.50173012,20723.0,20722.0,0.06767138]
[1673780699978,2.35808794,20723.0,20722.0,0.06767138]
[1673780700498,2.94694793,20723.0,20722.0,0.06767138]
[1673780700750,2.65925625,20723.0,20722.0,0.06767138]
[1673780701079,2.94694793,20723.0,20722.0,0.06767138]
[1673780701257,2.65925625,20723.0,20722.0,0.06767138]
[1673780701533,2.65871925,20723.0,20722.0,0.06767138]
[1673780702028,2.56961712,20723.0,20722.0,0.06767138]
[1673780702321,2.35415386,20723.0,20722.0,0.06767138]
[1673780702574,2.78879157,20723.0,20722.0,0.06767138]
[1673780702840,2.50018382,20723.0,20722.0,0.06767138]
[1673780703645,2.50133661,20723.0,20722.0,0.06767138]
[1673780703904,2.14778922,20723.0,20722.0,0.06767138]
[1673780704162,3.16892675,20723.0,20722.0,0.06767138]
[1673780705222,3.57092695,20723.0,20722.0,0.06767138]
[1673780705737,3.56846395,20723.0,20722.0,0.00967138]
[1673780705990,3.64056592,20723.0,20722.0,0.00967138]
[1673780706293,3.64056592,20723.0,20722.0,0.06367138]
[1673780706294,3.64356592,20723.0,20722.0,0.06367138]
[1673780706519,3.64356592,20723.0,20717.0,0.00967138]
[1673780706520,4.04256612,20723.0,20717.0,0.00967138]
[1673780706782,0.14417175,20719.0,20717.0,0.00967138]
[1673780707041,2.24635769,20718.0,20717.0,0.00967138]
[1673780707308,2.54635769,20718.0,20717.0,0.00967138]
[1673780707600,2.22521769,20718.0,20717.0,0.00967138]
[1673780707816,2.54635769,20718.0,20717.0,0.02267138]
[1673780708077,2.54635769,20718.0,20717.0,0.00967138]
[1673780708328,2.54690518,20718.0,20717.0,0.00967138]
[1673780708583,2.25651718,20718.0,20717.0,0.00967138]
[1673780708871,2.22576518,20718.0,20717.0,0.00967138]
[1673780709124,2.93719335,20718.0,20717.0,0.00967138]
[1673780709407,2.61605335,20718.0,20717.0,0.00967138]
[1673780709639,2.94519335,20718.0,20717.0,0.02267138]
[1673780709921,2.65480535,20718.0,20717.0,0.02267138]
[1673780711229,2.87074589,20718.0,20717.0,0.02267138]
[1673780711755,2.65480535,20718.0,20717.0,0.02267138]
[1673780715106,2.26451718,20718.0,20717.0,0.02267138]
[1673780715384,2.63832737,20718.0,20717.0,0.02267138]
[1673780716151,2.15565537,20718.0,20717.0,0.02267138]
[1673780716697,2.12490337,20718.0,20717.0,0.02267138]
[1673780716909,2.44604337,20718.0,20717.0,0.02267138]
[1673780717448,2.12490337,20718.0,20717.0,0.02267138]
[1673780717703,2.44604337,20718.0,20717.0,0.02267138]
[1673780718501,2.12490337,20718.0,20717.0,0.02267138]
[1673780718761,2.44604337,20718.0,20717.0,0.02267138]
[1673780719025,2.15565537,20718.0,20717.0,0.02267138]
[1673780719284,2.12490337,20718.0,20717.0,0.02267138]
[1673780719547,1.82490337,20718.0,20717.0,0.02267138]
[1673780720323,2.12490337,20718.0,20717.0,0.02267138]
[1673780720796,2.44604337,20718.0,20717.0,0.02267138]
[1673780720801,1.96337137,20718.0,20717.0,0.02267138]
[1673780721042,1.37298337,20718.0,20717.0,0.02267138]
[1673780721301,1.34223137,20718.0,20717.0,0.02267138]
[1673780721831,0.48520169,20718.0,20717.0,0.37563127]
[1673780722347,0.48520169,20718.0,20717.0,0.3755639]
[1673780725695,0.48520169,20718.0,20717.0,0.5597959]
[1673780725926,0.48520169,20718.0,20717.0,0.3755639]
[1673780727428,0.008,20718.0,20717.0,0.3755639]
[1673780730001,0.008,20718.0,20717.0,0.37548989]
[1673780730251,2.27855174,20718.0,20717.0,0.02259737]
[1673780730506,2.5096901,20718.0,20717.0,0.02259737]
[1673780730760,3.22616185,20718.0,20717.0,0.02259737]
[1673780731014,3.44241948,20718.0,20717.0,0.02259737]
[1673780731524,3.57859123,20718.0,20717.0,0.00959737]
[1673780731771,3.57859123,20718.0,20717.0,0.01159737]
[1673780732026,3.03821556,20718.0,20717.0,0.01159737]
[1673780732277,3.44365205,20718.0,20717.0,0.01159737]
[1673780732547,3.00837358,20718.0,20717.0,0.01159737]
[1673780732810,3.08822201,20718.0,20717.0,0.01159737]
[1673780733072,3.44865139,20718.0,20717.0,0.01159737]
[1673780734068,3.44818402,20718.0,20717.0,0.01159737]
[1673780734318,3.40618402,20718.0,20717.0,0.00959737]
[1673780734579,3.67041006,20718.0,20717.0,0.01059737]
[1673780734836,3.48433517,20718.0,20717.0,0.01059737]
[1673780735309,3.11830789,20718.0,20717.0,0.00959737]
[1673780735828,3.48431794,20718.0,20717.0,0.01059737]
[1673780736103,4.16418866,20718.0,20717.0,0.00959737]
[1673780736382,4.24218866,20718.0,20716.0,0.0141322]
[1673780736623,0.68780212,20717.0,20716.0,0.0141322]
[1673780736876,1.96041212,20717.0,20716.0,0.0141322]
[1673780737184,2.43451429,20717.0,20716.0,0.0141322]
[1673780737442,2.7882703,20717.0,20716.0,0.0141322]
[1673780737969,2.32048813,20717.0,20716.0,0.0141322]
[1673780738481,1.96041212,20717.0,20716.0,0.0141322]
[1673780738733,1.96041212,20717.0,20716.0,0.0151322]
[1673780738734,2.03941212,20717.0,20716.0,0.0151322]
[1673780738985,1.96041212,20717.0,20716.0,0.0141322]
[1673780739249,2.46510652,20717.0,20716.0,0.0151322]
[1673780739507,3.31414405,20717.0,20716.0,0.0141322]
[1673780740023,2.88260652,20717.0,20716.0,0.0141322]
[1673780740799,2.53591212,20717.0,20716.0,0.0151322]
[1673780741064,2.89581686,20717.0,20716.0,0.0151322]
[1673780741581,2.81681686,20717.0,20716.0,0.0141322]
[1673780741865,2.53591212,20717.0,20716.0,0.0151322]
[1673780742131,2.81681007,20717.0,20716.0,0.0141322]
[1673780742404,3.35052093,20717.0,20716.0,0.0151322]
[1673780742661,3.35052093,20717.0,20716.0,0.0141322]
[1673780742924,2.61491212,20717.0,20716.0,0.0151322]
[1673780743175,3.41643724,20717.0,20716.0,0.0151322]
[1673780743855,3.0732666,20717.0,20716.0,0.20585815]
[1673780743858,3.0732666,20717.0,20716.0,0.0151322]
[1673780744081,2.57941521,20717.0,20716.0,0.0151322]
[1673780744335,2.8671546,20717.0,20716.0,0.0151322]
[1673780745457,3.1671546,20717.0,20716.0,0.0151322]
[1673780745686,2.95134209,20717.0,20716.0,0.0151322]
[1673780745909,2.92990254,20717.0,20716.0,0.0151322]
[1673780746119,3.30647253,20717.0,20716.0,0.0151322]
[1673780746403,2.73705712,20717.0,20716.0,0.0151322]
[1673780746581,3.13905732,20717.0,20716.0,0.0151322]
[1673780746807,2.30551959,20717.0,20716.0,0.0151322]
[1673780747047,2.57905712,20717.0,20716.0,0.0141322]
[1673780747263,2.82578944,20717.0,20716.0,0.0141322]
[1673780747980,2.39425191,20717.0,20716.0,0.0141322]
[1673780748872,2.39425191,20717.0,20716.0,0.01107432]
[1673780748873,2.82578944,20717.0,20716.0,0.01107432]
[1673780749106,2.87613819,20717.0,20716.0,0.01107432]
[1673780749802,3.27813839,20717.0,20716.0,0.01107432]
[1673780750471,3.32645989,20717.0,20716.0,0.01107432]
[1673780750911,3.32614283,20717.0,20716.0,0.01107432]
[1673780751386,3.09920246,20717.0,20716.0,0.01107432]
[1673780751860,3.27782503,20717.0,20716.0,0.01107432]
[1673780752295,2.87582483,20717.0,20716.0,0.01107432]
[1673780753434,3.27782503,20717.0,20714.0,0.0141322]
[1673780753651,0.47720169,20715.0,20714.0,0.0141322]
[1673780753866,2.72313259,20715.0,20713.0,0.0141322]
[1673780754081,1.17181343,20714.0,20713.0,0.0141322]
[1673780754311,3.51694737,20714.0,20713.0,0.0141322]
[1673780754534,3.08126467,20714.0,20713.0,0.0141322]
[1673780754753,3.51696329,20714.0,20713.0,0.0141322]
[1673780755412,3.60720425,20714.0,20713.0,0.0141322]
[1673780755876,3.24808945,20714.0,20713.0,0.0141322]
[1673780756091,3.09933946,20714.0,20713.0,0.0141322]
[1673780756560,3.2966313,20714.0,20713.0,0.0141322]
[1673780756783,3.3866313,20714.0,20713.0,0.0141322]
[1673780757013,3.00933946,20714.0,20713.0,0.0141322]
[1673780757232,3.09988695,20714.0,20713.0,0.0141322]
[1673780757449,3.29717879,20714.0,20713.0,0.0141322]
[1673780757666,3.38717879,20714.0,20713.0,0.0141322]
[1673780759262,3.24860982,20714.0,20713.0,0.0141322]
[1673780759498,3.38716185,20714.0,20713.0,0.0141322]
[1673780759941,3.60772457,20714.0,20713.0,0.0141322]
[1673780760378,3.24860977,20714.0,20713.0,0.0141322]
[1673780760603,3.88725775,20714.0,20713.0,0.0141322]
[1673780761036,3.74863306,20714.0,20713.0,0.0141322]
[1673780761262,3.88726265,20714.0,20713.0,0.0141322]
[1673780761486,3.59997081,20714.0,20713.0,0.0141322]
[1673780761923,3.74352095,20714.0,20713.0,0.0141322]
[1673780762139,3.74351208,20714.0,20713.0,0.0141322]
[1673780762376,2.95529154,20714.0,20713.0,0.20485815]
[1673780762593,2.03285163,20714.0,20713.0,0.20485815]
[1673780762848,2.03285163,20714.0,20713.0,0.51657021]
[1673780762849,1.53273169,20714.0,20713.0,0.51657021]
[1673780763332,1.04996669,20714.0,20713.0,0.51657021]
[1673780763571,0.95996669,20714.0,20713.0,0.51657021]
[1673780763799,0.96796669,20714.0,20713.0,0.52557021]
[1673780764025,0.47720169,20714.0,20713.0,0.51663439]
[1673780764235,0.48620169,20714.0,20713.0,0.76457021]
[1673780764475,0.47720169,20714.0,20713.0,0.75657021]
[1673780764697,0.47720169,20714.0,20713.0,0.94084921]
[1673780764922,0.48220169,20714.0,20713.0,0.76463439]